{"text_format":"1","workbook":"xlsx","n_sheets":5,"sheets":["Calendar_Main","Holidays","日付フォーマット","Links","Help"],"not_rendered":{"charts":0,"images":8,"macros":1,"external_links":0,"defined_names":16,"comments":0,"pivot_tables":0},"unopened":[],"bounds":{"document_bytes":16777216,"sheet_cells":100000,"rows_first":2000,"rows_last":500,"rows_between":2000,"halvings":0,"cell_chars":16384,"cell_head_chars":4096},"cells_cut":0,"cells_raw":0,"read":"whole","date_system":"1900"}

{"sheet":"Calendar_Main","index":0,"n_rows":30,"n_cols":14,"rows_kept":30,"cut":false,"hidden":false,"merged":[[22,0,22,6],[29,0,29,6],[6,7,6,8],[6,10,6,11],[9,6,9,8],[15,5,15,7],[7,6,7,8],[7,10,7,11]]}
["【カレンダーの書式設定】"]
["設定１","1日分に相当する図形の設定",null,null,null,null,null,null,null,null,null,null,null,"←黄色のセルを選択するとカレンダーを確認できます。"]
[null,"右の四角形を選択し、"]
[null,null,"図形の大きさ、図形内塗りつぶし色、",null,null,null,null,null,null,null,null,null,"2023-01-23"]
[null,null,"フォントの種類、色、太字/標準/イタリック等",null,null,null,null,null,null,null,null,null,"2023-01-23"]
[null,null,"を設定してください。",null,null,null,null,null,null,null,null,null,"2023-01-23"]
["設定２","カレンダーの見出し(年・月)の表示正式を選択してください",null,null,null,null,null,"yyyy年m月",null,"表示例：",{"$f":"TODAY()","v":"2023-02-26"},null,"2023-01-23"]
[null,"セルに入力される日付表示形式を選択してください",null,null,null,null,"yyyy/m/d (aaa)",null,null,"表示例：",{"$f":"TODAY()","v":"2023-02-26"},null,"2023-01-23"]
[null,null,null,null,null,null,null,null,null,null,null,null,"2023-01-23"]
["設定３","曜日の表示形式を選択してください。",null,null,null,null,"1) 日月火水木金土",null,null,null,null,null,"2023-01-23"]
[null,null,null,null,null,null,{"$f":"IF(LEFT(Week,1)=\"3\",\"各曜日３文字が正しくスペース内に表示されているか確認してください。\",\"\")","v":""},null,null,null,null,null,"2023-01-23"]
["設定４","土日祝日の色",null,null,null,null,null,null,null,null,null,null,"2023-01-23"]
[null,"このセルのフォントの色を、指定する日曜日の色に設定してください→",null,null,null,null,null,null,{"$f":"MID(Week,4,IF(LEFT(Week,1)=\"3\",3,1))","v":"日"},"（祝日も同色）",null,null,"2023-01-23"]
[null,"このセルのフォントの色を、指定する土曜日の色に設定してください→",null,null,null,null,null,null,{"$f":"RIGHT(Week,IF(LEFT(Week,1)=\"3\",3,1))","v":"土"},null,null,null,"2023-01-23"]
[null,null,null,null,null,null,null,null,null,null,null,null,"2023-01-23"]
["設定５","使用する祝日カレンダー",null,null,null,"1)公式カレンダー（日本）",null,null,"（Holidaysシートを参考に選択）",null,null,null,"2023-01-23"]
[null,null,null,null,null,null,null,null,null,null,null,null,"2023-01-23"]
["最後に","右の適用ボタンを押してください",null,null,null,null,null,null,null,null,null,null,"2023-02-17"]
[null,null,null,null,null,null,null,null,null,null,null,null,"2023-02-20"]
[null,null,null,null,null,null,null,null,null,null,null,null,"2023-02-21"]
["【カレンダーの起動方法の設定】"]
[]
["全てのブック上で日付書式のセルを選択したら自動的にカレンダーを表示する",null,null,null,null,null,null,"ON","OFFの場合は右クリックメニューかショーカットから実行"]
[]
["ショートカットキーでカレンダー表示が出来るようにする",null,null,null,null,null,"Ctrl ＋","b","空白ならショートカットキーは作成されない"]
[null,null,null,null,null,null,"ひとつ前のキー","b"]
[]
["【Googleカレンダーへのリンクを使用する場合】"]
[]
["リンク先のGoogleカレンダーのビューは月/週/日のどれ？",null,null,null,null,null,null,"week"]

{"sheet":"Holidays","index":1,"n_rows":60,"n_cols":4,"rows_kept":60,"cut":false,"hidden":false,"merged":[]}
["公式祝祭日（日本）",null,"カスタマイズしたホリデー"]
["データタブ→クエリと接続→更新ボタンで更新"]
["出典"]
["https://holidays-jp.github.io/api/v1/date.csv"]
["データは Google が用意している Googleカレンダーの情報から自動で生成"]
["Column1","Column2","日付","備考"]
["2022-01-01","元日"]
["2022-01-10","成人の日"]
["2022-02-11","建国記念の日"]
["2022-02-23","天皇誕生日"]
["2022-03-21","春分の日"]
["2022-04-29","昭和の日"]
["2022-05-03","憲法記念日"]
["2022-05-04","みどりの日"]
["2022-05-05","こどもの日"]
["2022-07-18","海の日"]
["2022-08-11","山の日"]
["2022-09-19","敬老の日"]
["2022-09-23","秋分の日"]
["2022-10-10","スポーツの日"]
["2022-11-03","文化の日"]
["2022-11-23","勤労感謝の日"]
["2023-01-01","元日"]
["2023-01-02","休日 元日"]
["2023-01-09","成人の日"]
["2023-02-11","建国記念の日"]
["2023-02-23","天皇誕生日"]
["2023-03-21","春分の日"]
["2023-04-29","昭和の日"]
["2023-05-03","憲法記念日"]
["2023-05-04","みどりの日"]
["2023-05-05","こどもの日"]
["2023-07-17","海の日"]
["2023-08-11","山の日"]
["2023-09-18","敬老の日"]
["2023-09-23","秋分の日"]
["2023-10-09","スポーツの日"]
["2023-11-03","文化の日"]
["2023-11-23","勤労感謝の日"]
["2024-01-01","元日"]
["2024-01-08","成人の日"]
["2024-02-11","建国記念の日"]
["2024-02-12","建国記念の日 振替休日"]
["2024-02-23","天皇誕生日"]
["2024-03-20","春分の日"]
["2024-04-29","昭和の日"]
["2024-05-03","憲法記念日"]
["2024-05-04","みどりの日"]
["2024-05-05","こどもの日"]
["2024-05-06","こどもの日 振替休日"]
["2024-07-15","海の日"]
["2024-08-11","山の日"]
["2024-08-12","休日 山の日"]
["2024-09-16","敬老の日"]
["2024-09-22","秋分の日"]
["2024-09-23","秋分の日 振替休日"]
["2024-10-14","スポーツの日"]
["2024-11-03","文化の日"]
["2024-11-04","文化の日 振替休日"]
["2024-11-23","勤労感謝の日"]

{"sheet":"日付フォーマット","index":2,"n_rows":37,"n_cols":2,"rows_kept":37,"cut":false,"hidden":false,"merged":[]}
["日付フォーマットのチョイス","適用結果"]
["yyyy/m/d",{"$f":"TODAY()","v":"2023-02-26"}]
["yyyy/mm/dd",{"$f":"TODAY()","v":"2023-02-26"}]
["yyyy年m月d日",{"$f":"TODAY()","v":"2023-02-26"}]
["yyyy/m/d (aaa)","2023-02-26"]
["yyyy/m/d (aaaa)","2023-02-26"]
["d-mmm-yyyy (ddd)","2023-02-26"]
["d-mmm-yyyy (dddd)","2023-02-26"]
["yyyy年m月d日(aaaa)","2023-02-26"]
["dd/mm/yyyy","2023-02-26"]
["mm/dd/yyyy","2023-02-26"]
["mm/dd/yyyy (ddd)","2023-02-26"]
["mmm. dd, yyyy","2023-02-26"]
["ddd mmm. dd, yyyy","2023-02-26"]
["mmmm dd, yyyy","2023-02-26"]
["yy-mm-dd","2023-02-26"]
[null,"2023-02-26"]
[null,"2023-02-26"]
[null,"2023-02-26"]
[null,"2023-02-26"]
[null,"2023-02-26"]
[null,"2023-02-26"]
[null,"2023-02-26"]
[null,"2023-02-26"]
[null,"2023-02-26"]
[null,"2023-02-26"]
[null,"2023-02-26"]
[null,"2023-02-26"]
[null,"2023-02-26"]
[null,"2023-02-26"]
[null,"2023-02-26"]
[null,"2023-02-26"]
[null,"2023-02-26"]
[null,"2023-02-26"]
[null,"2023-02-26"]
[null,"2023-02-26"]
[null,"2023-02-26"]

{"sheet":"Links","index":3,"n_rows":6,"n_cols":6,"rows_kept":6,"cut":false,"hidden":false,"merged":[]}
["有効/無効","Links　一覧",null,"URLの固定文字列","Calendar15","最終URL"]
["有効",null,"Google Calendar","https://calendar.google.com/calendar/u/0/r/day/","yyyy/m/d","https://calendar.google.com/calendar/u/0/r/week/2023/2/14"]
["有効",null,"ウィキペディア","https://ja.wikipedia.org/wiki/","m月d日","https://ja.wikipedia.org/wiki/2月14日"]
["有効","記念日","今日は何の日～毎日が記念日","https://www.nnh.to/","mm/dd","https://www.nnh.to/02/14"]
["有効",null,"みんなの知識　ちょっと便利帳","https://www.benricho.org/G_Gadgets/whatday-anniversary/","m/d","https://www.benricho.org/G_Gadgets/whatday-anniversary/2/14"]
["有効",null,"ダレトク雑学トリビア","https://netlab.click/todayis/","mmdd","https://netlab.click/todayis/0214"]

{"sheet":"Help","index":4,"n_rows":72,"n_cols":8,"rows_kept":72,"cut":false,"hidden":false,"merged":[[1,0,1,7],[2,0,2,7],[3,0,3,7],[4,0,4,7]]}
[]
["　　をクリックすると、この日から始まる連続した日付が選択されたセルの上又は左から順に自動入力されます。"]
["　　Shiftキーを押しながらクリックすると、この日から始まる連続した日付が選択されたセルの上又は左から順に自動入力されますが、土日祝日は除外されます。"]
["　　クリックすると、この日で終わる連続した日付が選択されたセルの上または左から順に自動入力されます。"]
["　　Shiftキーを押しながらクリックすると、この日で終わる連続した日付が選択されたセルの上又は左から順に自動入力されますが、土日祝日は除外されます。"]
[null,null,null,null,null,null,null,"閉じる"]
[]
[]
["日付入力UIの使い方"]
[null,"【カレンダーの書式設定】"]
[null,"Canlendar.xlsmブックのCalendar_Mainシート上で、【カレンダーの書式設定】欄で"]
[null,"カレンダーの書式を設定します。書式を変更した後は、「適用」ボタンを押してください。"]
[null,"Calendar.xlsm以外のブックに戻って変更した書式を反映したい場合はカレンダーが表示され"]
[null,"ているときにカレンダー上のメニューボタン（「・・・」と点が三つ表示されている所）を"]
[null,"クリックして、表示されたフォーム上の「カレンダー書式を最新ものに更新」とあるボタン"]
[null,"を押してください。"]
[]
[null,"【カレンダーの起動方法の設定】"]
[null,"次に日付入力をアシストするカレンダーが、どのような場合に表示されるかを設定します。"]
[null,"【カレンダーの起動方法の設定】欄で、ONかOFFを設定してください。"]
[null,"ONの場合は、開いているすべてのブック・シート上で、表示形式が日付型のどれかに"]
[null,"なっているセルを選択した場合、または複数セルを選択したときでも、その中で"]
[null,"アクティブとなっているセルが日付型である場合にはカレンダーが自動的に表示されます。"]
[]
[null,"OFFに設定されている場合は、上記のような自動表示は行われません。そのかわり、開い"]
[null,"ているすべてのブック・シート上で右クリックしたときに表示されるメニューのトップに"]
[null,"「日付入力メニュー（B)」というオプションが追加されていますので、それをクリック"]
[null,"するか、このメニューが表示されている時にキーの「B」を押すとカレンダーが表示され"]
[null,"ます。この「日付入力メニュー（B)」オプションはCalendar.xlsmが開かれると同時に"]
[null,"全てのエクセルブックで追加され、Calendar.xlsmを閉じると同時に除去されます。"]
[]
[null,"ON/OFFいずれの場合に設定されていても、右クリックメニューから起動された場合は、"]
[null,"アクティブセルの表示形式が日付型ではなくてもカレンダーが表示されます。"]
[null,"またショートカットキーでカレンダー表示が出来るようにするの右のセルに文字を入れると"]
[null,"コントロールを押しながら指定のキーを押すとカレンダー表示が実行されるようになります。"]
[null,"このショートカットキーはCalendar.xlsmを開いている限りすべてのブックで有効です。"]
[]
[null,"【カレンダーの日をクリックする】"]
[null,"カレンダーの日付をクリックすると、アクティブなシート上で選択されているセルにその"]
[null,"日付が入力されます。"]
[]
[null,"【複数のセル範囲を選択している場合】"]
[null,"シート上の複数のセルが選択されている場合は、すべてのセルに同一の日付が入力されると"]
[null,"同時に、そのカレンダー上の日の左右に　　　　　　このような矢印が表示されます。"]
[null,"右矢印をクリックするとその日付から始まる連続した日付が、シート上の選択範囲に、左上"]
[null,"から右下のセルの順に入力されます。左矢印をクリックすると、逆にその日付で終わる連続"]
[null,"した日付が同選択範囲に早い日付から遅い日付の順で左上のセルから順に右下のセルに入力"]
[null,"されます。選択範囲が連続していない複数の範囲でも、左上の領域から右下の領域への順に"]
[null,"連続入力されます。"]
[]
[null,"【Shiftキーを押しながら矢印をクリックした場合】"]
[null,"この場合は上記のように連続した日が入力されますが、このとき土日祝日を除いた日付が"]
[null,"入力されます。祝日のカレンダーはCalendar.xlsmブックのHolidaysシートのA・B列に日本"]
[null,"の祝日が記入されており、クエリの更新で最新に更新することが出来ます。"]
[]
[null,"公式カレンダーとは異なる独自のカレンダーを設定したいときは、同シートのC・D列に休日"]
[null,"と説明を入力し、Calendar_Mainシートの設定５の項目を切り替えます。"]
[]
[null,"【Shiftキーを押しながらカレンダーの日にちをクリックした場合】"]
[null,"カレンダー上の日にちをクリックするときにShiftキーを押しながら行うと、その日にちに"]
[null,"関連したリンクを表示することが出来ます。"]
[null,"あらかじめ設定されているリンクはCalendar.xlsmブックの「Links」シートにあります。"]
[null,"このうち不要なリンクはA列の値を有効から無効に変更してください。有効になっているリンク"]
[null,"のみ表示されるようになります。"]
[null,"リンクが表示されているとき、それをクリックするとブラウザが開かれ指定されたサイトが"]
[null,"表示されます。"]
[null,"Googleカレンダーをクリックすると、Googleアカウントを持ちカレンダーを使用している方は"]
[null,"指定の日を含むGoogleカレンダーが表示されます。表示するビューは月、週、日から選択でき"]
[null,"ます。Calendar.xlsmブックのMainシートで設定してください。"]
[]
[null,"Outlookカレンダー（予定表）をお使いの場合は、日付の入ったセルから右クリックで予定表に"]
[null,"アクセスすることが出来ます。これはエクセル標準機能です。"]